fUST/lending_fUST_20240815
["ID","MTS","AMOUNT","RATE_DAILY","PERIOD"]
[334948605,1723667448928,-1000.0,0.00013812,2]
[334948606,1723667448939,-155.0,0.0001383,2]
[334948607,1723667448949,-587.468035,0.00013872,2]
[334948608,1723667448959,-587.468035,0.00013872,2]
[334948609,1723667448968,-151.0,0.00013872,2]
[334948610,1723667448978,-193.42012825,0.00013872,2]
[334948611,1723667448988,-816.88405698,0.00013872,2]
[334948612,1723667448997,-903.0,0.000139,2]
[334948613,1723667449007,-150.112233,0.000139,2]
[334948614,1723667449016,-150.112233,0.000139,2]
[334948615,1723667449025,-981.43884,0.0001396,2]
[334948616,1723667449035,-981.43884,0.0001396,2]
[334948617,1723667449046,-200.36539214,0.0001396,2]
[334948618,1723667449056,-500.0,0.0001396,2]
[334948619,1723667449066,-500.0,0.0001396,2]
[334948620,1723667449075,-350.10266748,0.0001396,2]
[334948621,1723667449085,-500.0,0.0001396,2]
[334948622,1723667449094,-500.0,0.0001396,2]
[334948623,1723667449104,-203.04571911,0.0001396,2]
[334948624,1723667449113,-500.0,0.0001396,2]
[334948625,1723667449122,-500.0,0.0001396,2]
[334948626,1723667449132,-500.0,0.0001396,2]
[334948627,1723667449141,-500.0,0.0001396,2]
[334948628,1723667449151,-500.0,0.0001396,2]
[334948629,1723667449161,-560.16282966,0.0001396,2]
[334948630,1723667449171,-500.0,0.0001396,2]
[334948631,1723667449181,-500.0,0.0001396,2]
[334948632,1723667449190,-500.0,0.0001396,2]
[334948633,1723667449200,-500.0,0.0001396,2]
[334948634,1723667449209,-500.0,0.0001396,2]
[334948635,1723667449218,-500.0,0.0001396,2]
[334948636,1723667449228,-500.0,0.0001396,2]
[334948637,1723667449237,-500.0,0.0001396,2]
[334948638,1723667449246,-500.0,0.0001396,2]
[334948639,1723667449403,-5100.48874046,0.00013961,2]
[334948640,1723667449413,-2590.1,0.00013961,2]
[334948641,1723667449425,-152.446725,0.00013962,2]
[334948642,1723667449434,-186.205205,0.00013962,2]
[334948643,1723667449444,-186.205205,0.00013962,2]
[334948644,1723667449453,-166.499919,0.00013962,2]
[334948645,1723667449463,-166.499919,0.00013962,2]
[334948646,1723667449472,-151.0,0.00013962,2]
[334948647,1723667449482,-151.0,0.00013962,2]
[334948648,1723667449491,-151.0,0.00013962,2]
[334948649,1723667449501,-151.0,0.00013962,2]
[334948650,1723667449510,-749.80972,0.00013962,2]
[334948651,1723667449519,-749.80972,0.00013962,2]
[334948652,1723667449529,-25502.4437023,0.00013962,2]
[334948653,1723667449538,-2590.1,0.00013969,2]
[334948654,1723667449548,-150.01,0.00013971,2]
[334948655,1723667449558,-2007.54775681,0.00013971,2]
[334948656,1723667449567,-502.252925,0.00013971,2]
[334948657,1723667449577,-502.252925,0.00013971,2]
[334948658,1723667449586,-151.0,0.00013971,2]
[334948659,1723667449596,-1473.603379,0.00013971,2]
[334948660,1723667449606,-1473.603379,0.00013971,2]
[334948661,1723667449615,-151.0,0.00013971,2]
[334948662,1723667449624,-151.0,0.00013971,2]
[334948663,1723667449634,-894.67877,0.00013971,2]
[334948664,1723667449643,-894.67877,0.00013971,2]
[334948665,1723667449653,-2590.1,0.00013971,2]
[334948666,1723667449662,-2590.1,0.00013971,2]
[334948667,1723667449673,-2590.1,0.00013971,2]
[334948668,1723667449682,-2590.1,0.00013971,2]
[334948669,1723667449691,-2590.1,0.00013971,2]
[334948670,1723667449701,-2590.1,0.00013971,2]
[334948671,1723667449713,-416.577535,0.00013971,2]
[334948672,1723667449724,-151.0,0.00013971,2]
[334948673,1723667449734,-416.577535,0.00013971,2]
[334948674,1723667449743,-151.0,0.00013971,2]
[334948675,1723667449753,-151.0,0.00013971,2]
[334948676,1723667449763,-390.865881,0.00013971,2]
[334948677,1723667449772,-390.865881,0.00013971,2]
[334948678,1723667449782,-481.795839,0.00013971,2]
[334948679,1723667449792,-215.567551,0.00013971,2]
[334948680,1723667449801,-481.795839,0.00013971,2]
[334948681,1723667449810,-215.567551,0.00013971,2]
[334948682,1723667449821,-151.0,0.00013971,2]
[334948683,1723667449831,-151.0,0.00013971,2]
[334948684,1723667449842,-207.378808,0.00013972,2]
[334948685,1723667449853,-207.378808,0.00013972,2]
[334948686,1723667449864,-151.0,0.00013972,2]
[334948687,1723667449873,-245.600801,0.00013972,2]
[334948688,1723667449883,-151.896447,0.00013972,2]
[334948689,1723667449894,-151.0,0.00013972,2]
[334948690,1723667449904,-151.0,0.00013972,2]
[334948691,1723667449915,-186.205205,0.00013972,2]
[334948692,1723667449927,-186.205205,0.00013972,2]
[334948693,1723667449937,-186.205205,0.00013972,2]
[334948694,1723667449950,-186.205205,0.00013972,2]
[334948695,1723667449962,-166.499919,0.00013972,2]
[334948696,1723667449972,-166.499919,0.00013972,2]
[334948697,1723667449981,-166.499919,0.00013972,2]
[334948698,1723667449990,-166.499919,0.00013972,2]
[334948699,1723667450000,-151.0,0.00013972,2]
[334948700,1723667450010,-151.0,0.00013972,2]
[334948701,1723667450020,-151.0,0.00013972,2]
[334948702,1723667450029,-151.0,0.00013972,2]
[334948703,1723667450039,-151.0,0.00013972,2]
[334948704,1723667450048,-151.0,0.00013972,2]
[334948705,1723667450058,-151.0,0.00013972,2]
[334948706,1723667450067,-500.0,0.00013972,2]
[334948707,1723667450076,-151.0,0.00013972,2]
[334948708,1723667450085,-151.0,0.00013972,2]
[334948709,1723667450095,-500.0,0.00013972,2]
[334948710,1723667450104,-500.0,0.00013972,2]
[334948711,1723667450114,-500.0,0.00013972,2]
[334948712,1723667450123,-151.0,0.00013972,2]
[334948713,1723667450134,-151.0,0.00013972,2]
[334948714,1723667450143,-151.0,0.00013972,2]
[334948715,1723667450153,-201.100853,0.00013972,2]
[334948716,1723667450162,-643.22,0.00013972,2]
[334948717,1723667450172,-500.0,0.00013972,2]
[334948718,1723667450183,-500.0,0.00013972,2]
[334948719,1723667450192,-151.0,0.00013972,2]
[334948720,1723667450202,-500.0,0.00013972,2]
[334948721,1723667450211,-500.0,0.00013972,2]
[334948722,1723667450220,-500.0,0.00013972,2]
[334948723,1723667450230,-500.0,0.00013972,2]
[334948724,1723667450239,-158.35396134,0.00013972,2]
[334948725,1723667450248,-604.62,0.00013972,2]
[334948726,1723667450258,-560.23,0.00013972,2]
[334948727,1723667450267,-500.0,0.00013972,2]
[334948728,1723667450277,-500.0,0.00013972,2]
[334948729,1723667450287,-500.0,0.00013972,2]
[334948730,1723667450296,-500.0,0.00013972,2]
[334948731,1723667450306,-500.0,0.00013972,2]
[334948732,1723667450315,-500.0,0.00013972,2]
[334948733,1723667450325,-500.0,0.00013972,2]
[334948734,1723667450334,-373.21649375,0.00013972,2]
[334948735,1723667450344,-500.0,0.00013972,2]
[334948736,1723667450353,-500.0,0.00013972,2]
[334948737,1723667450363,-500.0,0.00013972,2]
[334948738,1723667450374,-500.0,0.00013972,2]
[334948739,1723667450384,-500.0,0.00013972,2]
[334948740,1723667450393,-500.0,0.00013972,2]
[334948741,1723667450403,-500.0,0.00013972,2]
[334948742,1723667450412,-500.0,0.00013972,2]
[334948743,1723667450425,-500.0,0.00013972,2]
[334948744,1723667450440,-647.57,0.00013972,2]
[334948745,1723667450450,-500.0,0.00013972,2]
[334948746,1723667450458,-500.0,0.00013972,2]
[334948747,1723667450469,-500.0,0.00013972,2]
[334948748,1723667450477,-500.0,0.00013972,2]
[334948749,1723667450486,-240.7569454,0.00013972,2]
[334948750,1723667450495,-500.0,0.00013972,2]
[334948751,1723667450504,-500.0,0.00013972,2]
[334948752,1723667450513,-151.0,0.00013972,2]
[334948753,1723667450522,-500.0,0.00013972,2]
[334948754,1723667450532,-590.35,0.00013972,2]
[334948755,1723667450542,-188.934773,0.00013972,2]
[334948756,1723667450551,-188.934773,0.00013972,2]
[334948757,1723667450560,-271.26,0.00013972,2]
[334948758,1723667450569,-188.934773,0.00013972,2]
[334948759,1723667450578,-188.934773,0.00013972,2]
[334948760,1723667450588,-500.0,0.00013972,2]
[334948761,1723667450597,-557.03,0.00013972,2]
[334948762,1723667450607,-500.0,0.00013972,2]
[334948763,1723667450616,-500.0,0.00013972,2]
[334948764,1723667450626,-500.0,0.00013972,2]
[334948765,1723667450635,-500.0,0.00013972,2]
[334948766,1723667450644,-500.0,0.00013972,2]
[334948767,1723667450655,-545.47,0.00013972,2]
[334948768,1723667450664,-500.0,0.00013972,2]
[334948769,1723667450674,-533.4,0.00013972,2]
[334948770,1723667450683,-500.0,0.00013972,2]
[334948771,1723667450692,-455.371433,0.00013972,2]
[334948772,1723667450702,-500.0,0.00013972,2]
[334948773,1723667450715,-500.0,0.00013972,2]
[334948774,1723667450725,-550.38,0.00013972,2]
[334948775,1723667450735,-500.0,0.00013972,2]
[334948776,1723667450744,-500.0,0.00013972,2]
[334948777,1723667450753,-500.0,0.00013972,2]
[334948778,1723667450765,-199.55934254,0.00013972,2]
[334948779,1723667450775,-500.0,0.00013972,2]
[334948780,1723667450784,-550.59,0.00013972,2]
[334948781,1723667450795,-500.0,0.00013972,2]
[334948782,1723667450805,-500.0,0.00013972,2]
[334948783,1723667450815,-500.0,0.00013972,2]
[334948784,1723667450824,-500.0,0.00013972,2]
[334948785,1723667450835,-500.0,0.00013972,2]
[334948786,1723667450844,-500.0,0.00013972,2]
[334948787,1723667450853,-500.0,0.00013972,2]
[334948788,1723667450864,-500.0,0.00013972,2]
[334948789,1723667450874,-500.0,0.00013972,2]
[334948790,1723667450884,-585.76,0.00013972,2]
[334948791,1723667450893,-151.0,0.00013972,2]
[334948792,1723667450904,-151.0,0.00013972,2]
[334948793,1723667450913,-500.0,0.00013972,2]
[334948794,1723667450923,-500.0,0.00013972,2]
[334948795,1723667450932,-500.0,0.00013972,2]
[334948796,1723667450942,-500.0,0.00013972,2]
[334948797,1723667450952,-500.0,0.00013972,2]
[334948798,1723667450962,-500.0,0.00013972,2]
[334948799,1723667450971,-500.0,0.00013972,2]
[334948800,1723667450981,-500.0,0.00013972,2]
[334948801,1723667450991,-500.0,0.00013972,2]
[334948802,1723667451000,-151.0,0.00013972,2]
[334948803,1723667451010,-151.0,0.00013972,2]
[334948804,1723667451020,-500.0,0.00013972,2]
[334948805,1723667451029,-500.0,0.00013972,2]
[334948806,1723667451041,-500.0,0.00013972,2]
[334948807,1723667451050,-500.0,0.00013972,2]
[334948808,1723667451060,-500.0,0.00013972,2]
[334948809,1723667451069,-500.0,0.00013972,2]
[334948810,1723667451080,-500.0,0.00013972,2]
[334948811,1723667451090,-500.0,0.00013972,2]
[334948812,1723667451100,-500.0,0.00013972,2]
[334948813,1723667451111,-500.0,0.00013972,2]
[334948814,1723667451121,-500.0,0.00013972,2]
[334948815,1723667451130,-500.0,0.00013972,2]
[334948816,1723667451139,-500.0,0.00013972,2]
[334948817,1723667451149,-500.0,0.00013972,2]
[334948818,1723667451158,-500.0,0.00013972,2]
[334948819,1723667451168,-557.22,0.00013972,2]
[334948820,1723667451179,-153.203742,0.00013972,2]
[334948821,1723667451188,-500.0,0.00013972,2]
[334948822,1723667451197,-500.0,0.00013972,2]
[334948823,1723667451207,-583.15636171,0.00013972,2]
[334948824,1723667451216,-151.0,0.00013972,2]
[334948825,1723667451227,-500.0,0.00013972,2]
[334948826,1723667451236,-500.0,0.00013972,2]
[334948827,1723667451246,-500.0,0.00013972,2]
[334948828,1723667451255,-500.0,0.00013972,2]
[334948829,1723667451266,-610.61,0.00013972,2]
[334948830,1723667451275,-500.0,0.00013972,2]
[334948831,1723667451285,-500.0,0.00013972,2]
[334948832,1723667451294,-500.0,0.00013972,2]
[334948833,1723667451304,-500.0,0.00013972,2]
[334948834,1723667451314,-981.43884,0.00013972,2]
[334948835,1723667451323,-500.0,0.00013972,2]
[334948836,1723667451333,-981.43884,0.00013972,2]
[334948837,1723667451342,-500.0,0.00013972,2]
[334948838,1723667451351,-500.0,0.00013972,2]
[334948839,1723667451361,-981.43884,0.00013972,2]
[334948840,1723667451370,-981.43884,0.00013972,2]
[334948841,1723667451379,-500.0,0.00013972,2]
[334948842,1723667451388,-571.28,0.00013972,2]
[334948843,1723667451397,-500.0,0.00013972,2]
[334948844,1723667451407,-500.0,0.00013972,2]
[334948845,1723667451416,-688.63,0.00013972,2]
[334948846,1723667451427,-769.52,0.00013972,2]
[334948847,1723667451437,-500.0,0.00013972,2]
[334948848,1723667451446,-500.0,0.00013972,2]
[334948849,1723667451455,-500.0,0.00013972,2]
[334948850,1723667451465,-500.0,0.00013972,2]
[334948851,1723667451474,-500.0,0.00013972,2]
[334948852,1723667451484,-500.0,0.00013972,2]
[334948853,1723667451494,-500.0,0.00013972,2]
[334948854,1723667451503,-500.0,0.00013972,2]
[334948855,1723667451512,-500.0,0.00013972,2]
[334948856,1723667451522,-500.0,0.00013972,2]
[334948857,1723667451531,-151.0,0.00013972,2]
[334948858,1723667451541,-151.0,0.00013972,2]
[334948859,1723667451550,-500.0,0.00013972,2]
[334948860,1723667451560,-500.0,0.00013972,2]
[334948861,1723667451570,-500.0,0.00013972,2]
[334948862,1723667451580,-697.47,0.00013972,2]
[334948863,1723667451590,-500.0,0.00013972,2]
[334948864,1723667451600,-500.0,0.00013972,2]
[334948865,1723667451610,-500.0,0.00013972,2]
[334948866,1723667451619,-621.35,0.00013972,2]
[334948867,1723667451629,-675.92,0.00013972,2]
[334948868,1723667451638,-500.0,0.00013972,2]
[334948869,1723667451647,-500.0,0.00013972,2]
[334948870,1723667451656,-587.468035,0.00013972,2]
[334948871,1723667451665,-587.468035,0.00013972,2]
[334948872,1723667451676,-500.0,0.00013972,2]
[334948873,1723667451685,-587.468035,0.00013972,2]
[334948874,1723667451695,-587.468035,0.00013972,2]
[334948875,1723667451704,-903.37,0.00013972,2]
[334948876,1723667451716,-699.68,0.00013972,2]
[334948877,1723667451727,-562.03,0.00013972,2]
[334948878,1723667451736,-810.02,0.00013972,2]
[334948879,1723667451746,-500.0,0.00013972,2]
[334948880,1723667451755,-500.0,0.00013972,2]
[334948881,1723667451766,-525.33,0.00013972,2]
[334948882,1723667451776,-692.572931,0.00013972,2]
[334948883,1723667451785,-576.36497764,0.00013972,2]
[334948889,1723668344154,-165.422218,0.00012513,2]
[334948890,1723668344176,-165.422218,0.00012552,2]
[334948891,1723668344198,-165.422218,0.0001259,2]
[334948892,1723668344221,-165.422218,0.00012628,2]
[334948893,1723668344243,-568.132478,0.00012636,2]
[334948894,1723668344266,-165.422218,0.00012667,2]
[334948895,1723668344287,-203.93211999,0.00012682,2]
[334948896,1723668344309,-165.422218,0.00012705,2]
[334948897,1723668344333,-165.422218,0.00012743,2]
[334948898,1723668344356,-165.422218,0.00012782,2]
[334948899,1723668344377,-165.422218,0.0001282,2]
[334948900,1723668344399,-165.422218,0.00012858,2]
[334948901,1723668344421,-165.422218,0.00012897,2]
[334948902,1723668344444,-8.0102297,0.00012935,2]
[334948903,1723668436112,-164.277899,0.00012588,2]
[334948904,1723668436135,-164.277899,0.00012698,2]
[334948905,1723668436158,-164.277899,0.00012807,2]
[334948906,1723668436182,-2757.3799568,0.00012898,2]
[334948907,1723668436202,-164.277899,0.00012916,2]
[334948908,1723668436226,-440.266742,0.00012986,2]
[334948909,1723668436247,-93.8193351,0.00013026,2]
[334948924,1723668631952,-462.228,0.00012898,2]
[334948931,1723668632009,-15063.10352666,0.00012898,2]
[334948934,1723668632021,-2601.94333682,0.00012898,2]
[334948936,1723668632031,-300.0,0.00012988,2]
[334948938,1723668632040,-300.0,0.00012988,2]
[334948940,1723668632049,-309.4584508,0.00013025,2]
[334948942,1723668632058,-70.4585639,0.00013026,2]
[334948944,1723668632067,-538.4755711,0.00013026,2]
[334948946,1723668632078,-5015.04482254,0.00013026,2]
[334948948,1723668632087,-164.277899,0.00013135,2]
[334948950,1723668632096,-227.51894009,0.00013243,2]
[334948952,1723668632105,-164.277899,0.00013244,2]
[334948954,1723668632115,-495.8032044,0.00013449,2]
[334948956,1723668632123,-205.39379948,0.00013449,2]
[334948958,1723668632134,-499.999,0.0001345,4]
[334948960,1723668632143,-601.04165462,0.00013477,2]
[334948962,1723668632154,-317.31553436,0.00013478,2]
[334948989,1723668640146,-53.06382976,0.00013478,2]
[334948990,1723668640158,-154.74467129,0.00013478,2]
[334948991,1723668640320,-154.83726039,0.00013478,2]
[334948992,1723668640330,-294.8038627,0.000135,2]
[334948993,1723668640339,-3488.61209956,0.00013597,2]
[334948994,1723668640348,-161.84089504,0.00013598,2]
[334948995,1723668640357,-322.79290283,0.00013598,2]
[334948996,1723668640367,-933.09765316,0.00013688,2]
[334948997,1723668640377,-13092.424853,0.00013688,2]
[334948998,1723668640390,-3091.2063351,0.00013698,2]
[334948999,1723668640400,-500.0,0.00013698,2]
[334949000,1723668640410,-500.0,0.00013698,2]
[334949001,1723668640419,-500.0,0.00013698,2]
[334949002,1723668640429,-500.0,0.00013698,2]
[334949003,1723668640439,-500.0,0.00013698,2]
[334949004,1723668640448,-500.0,0.00013698,2]
[334949005,1723668640458,-500.0,0.00013698,2]
[334949006,1723668640470,-500.0,0.00013698,2]
[334949007,1723668640480,-246.97786318,0.00013698,2]
[334949008,1723668640489,-500.0,0.00013698,2]
[334949009,1723668640499,-500.0,0.00013698,2]
[334949010,1723668640509,-500.0,0.00013698,2]
[334949011,1723668640519,-500.0,0.00013698,2]
[334949012,1723668640528,-500.0,0.00013698,2]
[334949013,1723668640537,-500.0,0.00013698,2]
[334949014,1723668640546,-500.0,0.00013698,2]
[334949015,1723668640556,-500.0,0.00013698,2]
[334949016,1723668640565,-234.65402979,0.00013698,2]
[334949017,1723668640574,-277.84397987,0.00013698,2]
[334949018,1723668640583,-500.0,0.00013698,2]
[334949019,1723668640593,-174.1435095,0.00013698,2]
[334949020,1723668640602,-500.0,0.00013698,2]
[334949021,1723668640612,-500.0,0.00013698,2]
[334949022,1723668640622,-500.0,0.00013698,2]
[334949023,1723668640634,-500.0,0.00013698,2]
[334949024,1723668640643,-502.21283972,0.00013698,2]
[334949025,1723668640653,-500.0,0.00013698,2]
[334949026,1723668640661,-500.0,0.00013698,2]
[334949027,1723668640672,-500.0,0.00013698,2]
[334949028,1723668640681,-500.0,0.00013698,2]
[334949029,1723668640691,-500.0,0.00013698,2]
[334949030,1723668640700,-500.0,0.00013698,2]
[334949031,1723668640709,-660.28,0.00013698,2]
[334949032,1723668640719,-500.0,0.00013698,2]
[334949033,1723668640729,-500.0,0.00013698,2]
[334949034,1723668640738,-500.0,0.00013698,2]
[334949035,1723668640747,-500.0,0.00013698,2]
[334949036,1723668640756,-500.0,0.00013698,2]
[334949037,1723668640766,-500.0,0.00013698,2]
[334949038,1723668640776,-606.80540366,0.00013698,2]
[334949039,1723668640785,-500.0,0.00013698,2]
[334949040,1723668640794,-539.9,0.00013698,2]
[334949041,1723668640804,-500.0,0.00013698,2]
[334949042,1723668640813,-500.0,0.00013698,2]
[334949043,1723668640823,-500.0,0.00013698,2]
[334949044,1723668640832,-500.0,0.00013698,2]
[334949045,1723668640841,-500.0,0.00013698,2]
[334949046,1723668640850,-500.0,0.00013698,2]
[334949047,1723668640859,-500.0,0.00013698,2]
[334949048,1723668640868,-500.0,0.00013698,2]
[334949049,1723668640877,-500.0,0.00013698,2]
[334949050,1723668640890,-500.0,0.00013698,2]
[334949051,1723668640899,-500.0,0.00013698,2]
[334949052,1723668640907,-500.0,0.00013698,2]
[334949053,1723668640916,-503.49,0.00013698,2]
[334949054,1723668640926,-500.0,0.00013698,2]
[334949055,1723668640936,-500.0,0.00013698,2]
[334949056,1723668640945,-500.0,0.00013698,2]
[334949057,1723668640954,-500.0,0.00013698,2]
[334949058,1723668640964,-500.0,0.00013698,2]
[334949059,1723668640973,-502.60012438,0.00013698,2]
[334949060,1723668640983,-597.54,0.00013698,2]
[334949061,1723668640992,-500.0,0.00013698,2]
[334949062,1723668641002,-544.25,0.00013698,2]
[334949063,1723668641011,-500.0,0.00013698,2]
[334949064,1723668641021,-511.34002103,0.00013698,2]
[334949065,1723668641031,-500.0,0.00013698,2]
[334949066,1723668641040,-500.0,0.00013698,2]
[334949067,1723668641050,-500.0,0.00013698,2]
[334949068,1723668641059,-500.0,0.00013698,2]
[334949069,1723668641069,-500.0,0.00013698,2]
[334949070,1723668641080,-500.0,0.00013698,2]
[334949071,1723668641091,-500.0,0.00013698,2]
[334949072,1723668641101,-500.0,0.00013698,2]
[334949073,1723668641110,-500.0,0.00013698,2]
[334949074,1723668641121,-532.24,0.00013698,2]
[334949075,1723668641131,-500.0,0.00013698,2]
[334949076,1723668641142,-500.0,0.00013698,2]
[334949077,1723668641151,-500.0,0.00013698,2]
[334949078,1723668641161,-500.0,0.00013698,2]
[334949079,1723668641171,-247.18501387,0.00013698,2]
[334949080,1723668641180,-500.0,0.00013698,2]
[334949081,1723668641189,-500.0,0.00013698,2]
[334949082,1723668641198,-500.0,0.00013698,2]
[334949083,1723668641208,-500.0,0.00013698,2]
[334949084,1723668641217,-506.3303359,0.00013698,2]
[334949085,1723668641226,-718.44,0.00013698,2]
[334949086,1723668641235,-500.0,0.00013698,2]
[334949087,1723668641244,-500.0,0.00013698,2]
[334949088,1723668641253,-526.17183015,0.00013698,2]
[334949089,1723668641263,-500.0,0.00013698,2]
[334949090,1723668641272,-500.0,0.00013698,2]
[334949091,1723668641282,-500.0,0.00013698,2]
[334949092,1723668641293,-500.0,0.00013698,2]
[334949093,1723668641302,-534.11,0.00013698,2]
[334949094,1723668641312,-500.0,0.00013698,2]
[334949095,1723668641322,-582.19282732,0.00013698,2]
[334949096,1723668641332,-500.0,0.00013698,2]
[334949097,1723668641341,-500.0,0.00013698,2]
[334949098,1723668641351,-500.0,0.00013698,2]
[334949099,1723668641360,-500.0,0.00013698,2]
[334949100,1723668641370,-500.0,0.00013698,2]
[334949101,1723668641379,-500.0,0.00013698,2]
[334949102,1723668641391,-500.0,0.00013698,2]
[334949103,1723668641401,-611.47,0.00013698,2]
[334949104,1723668641411,-500.0,0.00013698,2]
[334949105,1723668641420,-500.0,0.00013698,2]
[334949106,1723668641430,-500.0,0.00013698,2]
[334949107,1723668641440,-500.0,0.00013698,2]
[334949108,1723668641450,-500.0,0.00013698,2]
[334949109,1723668641460,-500.0,0.00013698,2]
[334949110,1723668641471,-500.0,0.00013698,2]
[334949111,1723668641481,-500.0,0.00013698,2]
[334949112,1723668641491,-500.0,0.00013698,2]
[334949113,1723668641501,-500.0,0.00013698,2]
[334949114,1723668641510,-504.09982287,0.00013698,2]
[334949115,1723668641520,-573.46,0.00013698,2]
[334949116,1723668641529,-152.12140313,0.00013698,2]
[334949117,1723668641540,-500.0,0.00013698,2]
[334949118,1723668641549,-500.0,0.00013698,2]
[334949119,1723668641564,-500.0,0.00013698,2]
[334949120,1723668641573,-500.0,0.00013698,2]
[334949121,1723668641583,-736.57,0.00013698,2]
[334949122,1723668641592,-500.0,0.00013698,2]
[334949123,1723668641601,-500.0,0.00013698,2]
[334949124,1723668641611,-500.0,0.00013698,2]
[334949125,1723668641620,-502.81348435,0.00013698,2]
[334949126,1723668641629,-564.36,0.00013698,2]
[334949127,1723668641641,-500.0,0.00013698,2]
[334949128,1723668641652,-500.0,0.00013698,2]
[334949129,1723668641661,-500.0,0.00013698,2]
[334949130,1723668641670,-500.0,0.00013698,2]
[334949131,1723668641679,-502.79646109,0.00013698,2]
[334949132,1723668641692,-500.0,0.00013698,2]
[334949133,1723668641701,-500.0,0.00013698,2]
[334949134,1723668641710,-500.0,0.00013698,2]
[334949135,1723668641719,-500.0,0.00013698,2]
[334949136,1723668641729,-500.0,0.00013698,2]
[334949137,1723668641738,-500.0,0.00013698,2]
[334949138,1723668641747,-500.0,0.00013698,2]
[334949139,1723668641756,-500.0,0.00013698,2]
[334949140,1723668641766,-500.0,0.00013698,2]
[334949141,1723668641774,-639.35,0.00013698,2]
[334949142,1723668641783,-500.0,0.00013698,2]
[334949143,1723668641793,-500.0,0.00013698,2]
[334949144,1723668641802,-500.0,0.00013698,2]
[334949145,1723668641811,-500.0,0.00013698,2]
[334949146,1723668641820,-500.0,0.00013698,2]
[334949147,1723668641830,-500.0,0.00013698,2]
[334949148,1723668641839,-595.68,0.00013698,2]
[334949149,1723668641848,-500.0,0.00013698,2]
[334949150,1723668641857,-500.0,0.00013698,2]
[334949151,1723668641866,-619.59,0.00013698,2]
[334949152,1723668641875,-500.0,0.00013698,2]
[334949153,1723668641886,-500.0,0.00013698,2]
[334949154,1723668641895,-500.0,0.00013698,2]
[334949155,1723668641903,-500.0,0.00013698,2]
[334949156,1723668641912,-500.0,0.00013698,2]
[334949157,1723668641921,-500.0,0.00013698,2]
[334949158,1723668641930,-500.0,0.00013698,2]
[334949159,1723668641940,-641.27,0.00013698,2]
[334949160,1723668641950,-865.43,0.00013698,2]
[334949161,1723668641959,-500.0,0.00013698,2]
[334949162,1723668641968,-500.0,0.00013698,2]
[334949163,1723668641977,-500.0,0.00013698,2]
[334949164,1723668641987,-500.0,0.00013698,2]
[334949165,1723668641996,-500.0,0.00013698,2]
[334949166,1723668642005,-831.25,0.00013698,2]
[334949167,1723668642014,-571.47,0.00013698,2]
[334949168,1723668642024,-500.0,0.00013698,2]
[334949169,1723668642033,-500.0,0.00013698,2]
[334949170,1723668642042,-500.0,0.00013698,2]
[334949171,1723668642051,-500.0,0.00013698,2]